[Event "FRA-ch Youth 2017"]
[Site "Belfort"]
[Date "2017.04.23"]
[Round "9"]
[White "Retailleau, Elise"]
[Black "Aubert, Laurane"]
[Result "1-0"]
[ECO "B40"]
[WhiteElo "1946"]
[BlackElo "1998"]
[Annotator "NA RC"]
[PlyCount "133"]
[EventDate "2017.??.??"]
[EventCountry "FRA"]
[SourceTitle "playchess.com"]
[Source "ChessBase"]
[SourceQuality "1"]
[TimeControl "5400+30"]

{[%evp 20,133,-8,32767,-17,32767,-14,32767,38,0,58,11,95,27,139,125,32767,32767,193,32767,134,160,32767,181,243,220,202,32767,325,413,329,32767,233,288,32767,302,277,32767,131,-526,-523,-558,-110,-109,32767,32767,32767,32767,-57,32767,0,-83,32767,32767,32767,32767,32767,32767,8,32767,32767,32767,32767,32767,32767,32767,32767,32767,32767,32767,32767,32767,32767,69,90,144,32767,57,95,126,140,49,591,716,32767,32767,6095,4613,5515,631,32767,4919,29969,11689,32767,29975,29975,29975,29970,29977,29971,29981,29964,29981,29981,32767,29981,32767,29982,29982,29984,29984,29983,29986,29984,29986]} 1. e4 {[%emt 0:00:00]} c5 {[%emt 0:00:03]} 2. Nf3 {[%emt 0:00:00]} e6 3. d4 {[%emt 0:00:01]} cxd4 {[%emt 0:00:10]} 4. Nxd4 {[%emt 0:00:16]} Nf6 {[%emt 0:00:04]} 5. Bd3 {[%emt 0:00:39]} Nc6 {[%emt 0:00:50]} 6. Nxc6 {[%emt 0:00:28]} bxc6 {[%emt 0:00:06]} 7. O-O {[%emt 0:00:34]} d5 {[%emt 0:00:08]} 8. Nc3 {[%emt 0:00:37]} Be7 {[%emt 0:01:34]} 9. e5 {[%emt 0:01:21] B40: Sicilian: 2...e6, Unusual lines} (9. Qe2 O-O 10. b3 Bb7 11. Bb2 c5 12. Rad1 Qc7 13. Nb5 Qb6 14. e5 Nd7 15. c4 d4 16. f4 g6 17. Be4 Bxe4 18. Qxe4 {1-0 (61) Pichot,A (2544)-Tregubov,P (2585) Doha 2016}) 9... Nd7 {[%emt 0:00:29]} 10. Qg4 {[%emt 0:00:50]} Nxe5 {[%emt 0:18:51]} 11. Qxg7 {[%emt 0:02:00]} Bf6 {[%emt 0:00:14]} 12. Qh6 {[%emt 0:02:41]} Nxd3 {[%emt 0:05:18]} 13. cxd3 {[%emt 0:00:34]} Ba6 {[%emt 0:08:20]} 14. Rd1 {[%emt 0:03:23]} Qe7 $146 {[%emt 0:04:14]} (14... Rb8 15. Ne2 Rg8 16. Rb1 Rb4 {1-0 (55) Cravens,D (1803)-Lannoy,J (1643) IECC email 2010}) 15. d4 {[%emt 0:06:52]} O-O-O {[%emt 0:09:06]} (15... Rg8 $14) 16. Na4 {[%emt 0:11:44]} (16. Bf4 $16) 16... Rdg8 {[%emt 0:03:04]} (16... Be2 $11 17. Re1 Bb5) 17. Qe3 {[%emt 0:02:01]} Rg6 {[%emt 0:14:37]} 18. Nc5 {[%emt 0:04:35]} Bb7 {[%emt 0:04:38]} 19. Qc3 {[%emt 0:04:41]} Rhg8 {[%emt 0:00:48]} 20. g3 {[%emt 0:01:58]} Rg4 {[%emt 0:03:44]} 21. b4 {[%emt 0:10:01]} ({Much less strong is} 21. Nxb7 $6 Qxb7 22. Kh1 Kb8 $14) 21... Qc7 {[%emt 0:03:28]} 22. Kh1 {[%emt 0:07:26]} e5 {[%emt 0:01:56]} 23. Qf3 {[%emt 0:01:11]} Qe7 {[%emt 0:05:22]} (23... Be7 $142 24. Qf5+ Kd8) 24. Qf5+ {[%emt 0:05:58]} Kc7 {[%emt 0:08:44]} 25. Rb1 {[%emt 0:05:20]} Bc8 {[%emt 0:00:53] [#]} 26. Qf3 $1 {[%emt 0:02:34]} Rxd4 {[%emt 0:03:53]} 27. Rxd4 {[%emt 0:03:25]} exd4 {[%emt 0:00:07]} 28. Bf4+ {[%emt 0:02:03]} Kd8 {[%emt 0:00:08]} 29. Nd3 $2 {[%emt 0:02:18] [#]} (29. Rc1 $16 {and life is bright.}) 29... Bg4 $1 {[%emt 0:00:31]} ({Less strong is} 29... Qe4 30. Qxe4 dxe4 31. Ne5 $17) 30. Qg2 {[%emt 0:02:08] [#]} Qe4 $2 {[%emt 0:01:03]} (30... Qe2 $1 $19 {has better winning chances.} 31. Ne1 Re8) 31. Qxe4 {[%emt 0:01:56]} dxe4 {[%emt 0:00:03]} 32. Nc5 {[%emt 0:01:08]} Bf3+ {[%emt 0:00:04]} 33. Kg1 $11 {[%emt 0:00:38] keeps the balance.} Be7 {[%emt 0:02:42]} 34. Nb3 {[%emt 0:06:15]} Bf6 {[%emt 0:00:32]} ({Worse is} 34... Bxb4 35. Nxd4 Bf8 36. Nxc6+ (36. Nxf3 exf3 37. Rb7 Ke8 $16) 36... Kd7 37. Ne5+ (37. Nxa7 Bc5 $11) (37. Nd4 Bg4 38. Rb7+ Ke8 39. Rb8+ Ke7 40. Nc6+ Kf6 $16) 37... Ke6 38. Rb8 $16 (38. Nxf3 exf3 39. Rb8 Rh8 40. Re8+ Kd7 $16)) (34... d3 $1 $15) 35. Nd2 {[%emt 0:02:05]} Re8 {[%emt 0:01:26]} 36. Nxf3 {[%emt 0:00:50]} exf3 {[%emt 0:00:04]} 37. Kf1 {[%emt 0:00:40]} Re2 {[%emt 0:00:25]} 38. a3 {[%emt 0:00:59]} d3 $2 {[%emt 0:00:52]} (38... Ra2 $19 39. Rd1 Rxa3) 39. Rd1 {[%emt 0:02:26]} Bd4 {[%emt 0:00:47]} 40. Rxd3 {[%emt 0:01:44]} Rxf2+ {[%emt 0:00:03]} 41. Ke1 {[%emt 0:00:51]} Re2+ {[%emt 0:00:08]} 42. Kd1 {[%emt 0:00:44]} Re4 {[%emt 0:00:47]} 43. Rxf3 {[%emt 0:00:41]} Ke7 {[%emt 0:00:35]} 44. Kd2 {[%emt 0:01:04]} Re6 {[%emt 0:00:35]} 45. a4 {[%emt 0:00:59]} c5 {[%emt 0:00:29]} 46. b5 {[%emt 0:01:19]} a6 {[%emt 0:00:28]} 47. Rb3 {[%emt 0:00:39]} axb5 {[%emt 0:00:28]} 48. Rxb5 {[%emt 0:00:18]} (48. axb5 $18 Rb6 49. Kd3) 48... Ra6 {[%emt 0:00:20]} ({Black should play} 48... Kd7 $14) 49. a5 {[%emt 0:00:30]} Kd7 {[%emt 0:00:47]} 50. Rb7+ {[%emt 0:00:32]} (50. Kd3 $16) 50... Ke6 $2 {[%emt 0:00:07]} ({Black should try} 50... Kc6 $1 $14 51. Rxf7 Rxa5) 51. Rb6+ {[%emt 0:00:14]} Rxb6 {[%emt 0:00:53]} 52. axb6 {[%emt 0:00:05]} c4 {[%emt 0:00:29]} 53. b7 {[%emt 0:00:41]} Ba7 {[%emt 0:00:11]} 54. b8=Q Bxb8 {[%emt 0:00:04]} 55. Bxb8 {[%emt 0:00:45]} Kf5 {[%emt 0:00:33]} 56. Kc3 {[%emt 0:00:12]} Kg4 {[%emt 0:00:10]} 57. h4 {[%emt 0:00:22]} Kf3 {[%emt 0:00:25]} 58. Kxc4 {[%emt 0:00:06]} Ke4 {[%emt 0:00:04]} 59. Bf4 {[%emt 0:00:59]} Kf5 {[%emt 0:00:36]} 60. Kd5 {[%emt 0:00:07]} Kf6 {[%emt 0:00:10]} 61. Kd6 {[%emt 0:00:14]} Kf5 {[%emt 0:00:14]} 62. Ke7 {[%emt 0:00:12]} Kg6 {[%emt 0:00:04]} 63. Be5 {[%emt 0:01:07]} h6 {[%emt 0:00:20]} 64. Bb2 {[%emt 0:00:44]} h5 {[%emt 0:00:44]} 65. Bc3 {[%emt 0:00:17]} Kf5 {[%emt 0:00:46]} 66. Kxf7 {[%emt 0:00:10]} Kg4 {[%emt 0:00:04]} 67. Be5 {[%emt 0:00:09]} 1-0

[Event "FRA-ch Youth 2017"]
[Site "Belfort"]
[Date "2017.04.23"]
[Round "9"]
[White "Djidjeli, Sarah"]
[Black "Yuan, Beline"]
[Result "0-1"]
[ECO "C15"]
[WhiteElo "1934"]
[BlackElo "1845"]
[Annotator "NA RC"]
[PlyCount "112"]
[EventDate "2017.??.??"]
[EventCountry "FRA"]
[SourceTitle "playchess.com"]
[Source "ChessBase"]
[SourceQuality "1"]
[TimeControl "5400+30"]

{[%evp 8,110,4,-3,0,5,6,4,32767,6,42,-24,-33,-46,32767,-16,17,-2,16,10,25,-22,0,-10,1,0,0,0,26,0,0,0,32767,32767,32767,26,32767,32767,32767,32767,32767,-5,0,-30,-17,-57,-47,-42,-4,32767,-15,-105,-96,-109,32767,-85,32767,-170,-31,-48,32767,-16,32767,32767,56,32767,90,91,32767,60,135,138,174,158,191,189,32767,-695,32767,32767,-885,-909,-971,-1057,32767,-1068,-950,32767,32767,32767,32767,32767,32767,32767,32767,32767,32767,32767,32767,32767,32767,32767,32767,32767,-29973]} 1. e4 {[%emt 0:00:00]} e6 {[%emt 0:00:18]} 2. d4 {[%emt 0:00:00]} d5 {[%emt 0:00:10]} 3. Nc3 {[%emt 0:00:00]} Bb4 {[%emt 0:00:30]} 4. Bd3 {[%emt 0:00:00]} dxe4 {[%emt 0:03:26]} 5. Bxe4 {[%emt 0:00:07]} Nf6 {[%emt 0:00:22]} 6. Bf3 {[%emt 0:01:02]} c5 {[%emt 0:01:00]} 7. Nge2 {[%emt 0:01:05] LiveBook: 46 Games} O-O 8. O-O {[%emt 0:01:38] C15: French: 3 Nc3 Bb4: Unusual White 4th moves} (8. a3 cxd4 9. axb4 dxc3 10. Qxd8 Rxd8 11. Nxc3 Nc6 12. Bxc6 bxc6 13. Be3 a6 14. Na4 Nd5 15. Bd2 Rb8 {½-½ (46) Ivanov,A (2402)-Petr,M (2478) Pardubice 2009}) 8... Nc6 {[%emt 0:11:42]} 9. Be3 {[%emt 0:13:51]} cxd4 {[%emt 0:04:51]} 10. Nxd4 {[%emt 0:00:48]} Bxc3 $146 {[%emt 0:01:32]} (10... Ne5 11. Be2 Bxc3 12. bxc3 Nd5 13. Qd2 Bd7 14. f4 Nxe3 15. Qxe3 Ng6 {0-1 (54) Werner,C (2322)-Biebinger,G (2283) Germany 2011}) 11. bxc3 {[%emt 0:05:56]} Ne7 {[%emt 0:01:13]} 12. Nb5 {[%emt 0:03:10]} Qa5 {[%emt 0:03:43]} 13. c4 {[%emt 0:07:41]} Rd8 {[%emt 0:01:21]} 14. Qe2 {[%emt 0:01:25]} (14. Qe1 $14 Qa4 15. Qc3) 14... a6 $1 {[%emt 0:01:54]} 15. Nd4 {[%emt 0:00:26]} e5 {[%emt 0:01:16]} 16. Nb3 {[%emt 0:00:24]} Qc7 $1 {[%emt 0:00:24]} 17. Bg5 {[%emt 0:02:55]} Ne8 {[%emt 0:05:49]} 18. Bd5 {[%emt 0:02:05]} Nf6 {[%emt 0:07:12]} 19. Bxf6 {[%emt 0:03:21]} gxf6 {[%emt 0:00:08]} 20. Rad1 {[%emt 0:00:18]} Ng6 {[%emt 0:05:26]} 21. Qf3 {[%emt 0:04:05]} f5 {[%emt 0:01:55]} 22. Qh5 {[%emt 0:01:10]} Be6 {[%emt 0:02:28]} 23. Bxe6 {[%emt 0:03:43]} fxe6 {[%emt 0:00:18]} 24. Qe2 {[%emt 0:01:45]} Kh8 {[%emt 0:09:43]} 25. Kh1 {[%emt 0:14:09]} Rg8 {[%emt 0:06:14]} 26. Rde1 {[%emt 0:01:25]} Rac8 {[%emt 0:04:00]} 27. c5 {[%emt 0:01:32]} Qc6 {[%emt 0:03:04]} 28. Rg1 {[%emt 0:03:11]} Rg7 {[%emt 0:02:33]} 29. Qf3 {[%emt 0:01:29]} (29. f3 $1 $11) 29... Qxf3 {[%emt 0:05:21]} 30. gxf3 {[%emt 0:00:08]} Rd7 {[%emt 0:00:34]} 31. Re3 {[%emt 0:02:36]} Rcd8 {[%emt 0:01:57]} 32. Rb1 {[%emt 0:05:31]} (32. a4 $17) 32... Nh4 {[%emt 0:03:43]} ({Much less strong is} 32... Nf4 33. h4 $15) (32... Kg7 $17 {aiming for ...Kf6.} 33. Na5 Rd1+ 34. Re1 Rxe1+ 35. Rxe1 Rd2) 33. Rxe5 {[%emt 0:02:05]} Rd1+ {[%emt 0:01:39]} 34. Re1 {[%emt 0:00:14]} Rxb1 {[%emt 0:00:26]} 35. Rxb1 {[%emt 0:00:31]} Rd5 {[%emt 0:01:41]} (35... Kg7 $11) 36. f4 {[%emt 0:01:35]} Kg8 {[%emt 0:02:35] [#]} 37. c4 $1 {[%emt 0:03:29]} Rd3 {[%emt 0:00:22]} 38. Na5 {[%emt 0:00:42]} Rc3 {[%emt 0:00:11]} 39. Kg1 {[%emt 0:01:34]} ({Much weaker is} 39. Nxb7 $6 Rxc4 40. Nd8 Rxc5 $11) 39... Rc2 {[%emt 0:02:32]} 40. h3 {[%emt 0:00:43]} ({Much less strong is} 40. Nxb7 $6 Rxc4 41. Nd8 Rxc5 $14) 40... Nf3+ {[%emt 0:00:09]} (40... e5 $16 {was worth a try.}) 41. Kg2 {[%emt 0:00:20]} Nd2 {[%emt 0:00:03]} 42. Nxb7 $4 (42. Rxb7 $18 Nxc4 43. Nb3 Ne3+ 44. Kg3) 42... Nxb1 {[%emt 0:00:38]} 43. Nd6 {[%emt 0:02:52]} Nd2 {[%emt 0:00:32]} 44. c6 {[%emt 0:00:13]} Nxc4 {[%emt 0:00:02]} 45. Ne8 {[%emt 0:00:18]} Nb6 {[%emt 0:00:25]} 46. c7 {[%emt 0:00:14]} Nc8 {[%emt 0:00:11]} 47. Nf6+ {[%emt 0:00:09]} Kg7 {[%emt 0:00:09]} 48. Nd7 {[%emt 0:00:51]} Rxc7 {[%emt 0:00:10]} 49. Ne5 {[%emt 0:00:01]} Rc2 {[%emt 0:00:17]} 50. a3 {[%emt 0:00:29]} Nd6 {[%emt 0:00:06]} 51. Nd3 {[%emt 0:00:22]} Rc3 {[%emt 0:00:12]} 52. Nb4 {[%emt 0:00:17]} Rxa3 {[%emt 0:00:05]} 53. Nc2 {[%emt 0:00:03]} Rc3 {[%emt 0:00:15]} 54. Nd4 {[%emt 0:00:06]} Kf6 {[%emt 0:00:05]} 55. Ne2 {[%emt 0:00:10]} Rc4 {[%emt 0:00:14]} 56. Ng3 {[%emt 0:00:36]} Ne4 {[%emt 0:00:05]} 0-1

[Event "FRA-ch Youth 2017"]
[Site "Belfort"]
[Date "2017.04.23"]
[Round "9"]
[White "Maugenest, Ghislain"]
[Black "Trabet, Mathis"]
[Result "1-0"]
[ECO "A57"]
[WhiteElo "1915"]
[BlackElo "1675"]
[Annotator "NA RC"]
[PlyCount "57"]
[EventDate "2017.??.??"]
[EventCountry "FRA"]
[SourceTitle "playchess.com"]
[Source "ChessBase"]
[SourceQuality "1"]
[TimeControl "5400+30"]

{[%evp 8,53,27,10,4,33,17,10,31,6,32767,-10,43,0,32767,32767,17,32767,20,-108,416,345,416,356,522,311,328,340,345,355,32767,32767,32767,32767,32767,32767,32767,32767,32767,32767,32767,414,524,538,510,32767,516,516]} 1. d4 {[%emt 0:00:00]} Nf6 {[%emt 0:00:15]} 2. c4 {[%emt 0:00:00]} c5 {[%emt 0:00:23]} 3. d5 {[%emt 0:00:00]} b5 {[%emt 0:00:30]} 4. cxb5 {[%emt 0:00:00]} a6 {[%emt 0:00:13]} 5. f3 {[%emt 0:00:27]} e6 {[%emt 0:00:42]} 6. e4 {[%emt 0:01:46]} exd5 {[%emt 0:01:33]} 7. e5 {[%emt 0:00:25]} Qe7 {[%emt 0:01:19]} 8. Qe2 {[%emt 0:00:30]} Ng8 {[%emt 0:00:19]} 9. Nc3 {[%emt 0:00:47]} Bb7 {[%emt 0:00:40]} 10. Nh3 {[%emt 0:00:48]} c4 {[%emt 0:02:35]} 11. Be3 {[%emt 0:02:30]} axb5 {[%emt 0:12:02] LiveBook: 36 Games} 12. O-O-O {[%emt 0:02:20]} Qxe5 {[%emt 0:10:46] A57: Benko/Volga Gambit} 13. Qf2 $146 {[%emt 0:15:04]} (13. Nxb5 $11 {keeps the balance.} Na6 14. Bd4 Qxe2 15. Bxe2) (13. f4 Qe7 14. Rxd5 d6 15. Rxb5 Nf6 16. Qd2 d5 17. Bxc4 dxc4 18. Bc5 Qd7 19. Qe3+ Qe6 20. Rxb7 Qxe3+ 21. Bxe3 {1-0 (47) Dlugy,M (2560)-Alburt,L (2535) Los Angeles 1991}) 13... Ne7 $2 {[%emt 0:07:54]} (13... Bc6 $11 {and Black stays safe.}) 14. Bf4 {[%emt 0:01:59]} Qf6 {[%emt 0:04:57]} 15. Nxb5 {[%emt 0:04:45]} Ng6 {[%emt 0:04:42]} 16. Qe3+ {[%emt 0:03:40]} Be7 {[%emt 0:02:42]} 17. Nc7+ {[%emt 0:04:14]} Kf8 {[%emt 0:01:18]} 18. Nxa8 {[%emt 0:01:29]} Nxf4 {[%emt 0:01:09]} 19. Qxf4 {[%emt 0:02:28]} Qxf4+ {[%emt 0:00:06]} 20. Nxf4 {[%emt 0:00:01]} Bg5 {[%emt 0:00:18]} 21. Nb6 {[%emt 0:00:23]} Bxf4+ {[%emt 0:00:12]} 22. Kb1 {[%emt 0:00:16]} d4 {[%emt 0:03:56]} 23. Rxd4 {[%emt 0:11:01]} Be3 {[%emt 0:01:48]} 24. Rxc4 {[%emt 0:00:15]} Ba6 {[%emt 0:01:26]} 25. Rb4 {[%emt 0:00:33]} Bc5 {[%emt 0:04:18]} 26. Rb3 {[%emt 0:02:10]} Bxf1 {[%emt 0:00:44]} 27. Rxf1 $18 {[%emt 0:00:10]} Bd6 {[%emt 0:00:58]} 28. Rd1 {[%emt 0:01:10]} Ke7 {[%emt 0:00:54]} 29. Re3+ {[%emt 0:00:08]} 1-0

[Event "FRA-ch Youth 2017"]
[Site "Belfort"]
[Date "2017.04.23"]
[Round "9"]
[White "Meillon, Judicael"]
[Black "Papadiamandis, Elliot"]
[Result "0-1"]
[ECO "B91"]
[WhiteElo "1884"]
[BlackElo "1944"]
[Annotator "NA RC"]
[PlyCount "81"]
[EventDate "2017.??.??"]
[EventCountry "FRA"]
[SourceTitle "playchess.com"]
[Source "ChessBase"]
[SourceQuality "1"]
[TimeControl "5400+30"]

{[%evp 8,81,34,24,30,28,36,41,41,19,32767,31,34,32767,11,-4,0,-47,10,-44,-45,-52,-39,-31,-41,-106,-52,32767,32767,0,0,-13,0,-66,0,0,-14,-14,26,29,37,32767,32767,-10,16,32767,4,6,20,32767,32767,32767,-128,32767,32767,32767,-241,-272,-282,-298,-296,-308,-302,-310,-312,-316,-279,32767,32767,32767,32767,-293,-297,-322,-332,-464]} 1. e4 {[%emt 0:00:00]} c5 {[%emt 0:00:10]} 2. Nf3 {[%emt 0:00:00]} d6 {[%emt 0:00:06]} 3. d4 {[%emt 0:00:00]} cxd4 {[%emt 0:00:04]} 4. Nxd4 {[%emt 0:00:00]} Nf6 {[%emt 0:00:25]} 5. Nc3 {[%emt 0:00:00]} a6 {[%emt 0:00:21]} 6. g3 {[%emt 0:00:00]} e6 {[%emt 0:03:49]} 7. Bg2 {[%emt 0:00:00]} Qc7 {[%emt 0:02:05]} 8. O-O {[%emt 0:01:59] LiveBook: 323 Games} Nc6 {[%emt 0:06:20]} 9. Bg5 {[%emt 0:07:37] B80: Sicilian Scheveningen: 6 g3 and 6 Be3, including English Attack} (9. a4 Be7 10. Be3 O-O 11. f4 Rb8 12. Kh1 Nd7 13. Qe2 Nxd4 14. Bxd4 b6 15. Rad1 Bb7 16. f5 Bf6 17. Bxf6 Nxf6 18. g4 exf5 19. Rxf5 Rbe8 20. g5 Nd7 {0-1 (29) Wei,Y (2709)-Xu,Y (2516) Shenzhen 2016}) 9... Be7 {[%emt 0:01:05]} 10. Qd2 {[%emt 0:20:08]} Ne5 $146 {[%emt 0:08:52]} (10... h6 11. Nxc6 bxc6 12. Bxf6 Bxf6 13. Rad1 Be7 14. Na4 O-O 15. c4 Rb8 16. b4 Rd8 {0-1 (36) Simpson,B (1843)-Shen,V (2401) Reykjavik 2015}) 11. b3 {[%emt 0:06:44]} h6 {[%emt 0:03:27]} 12. Bf4 {[%emt 0:05:26]} Ng6 {[%emt 0:01:06]} 13. Nde2 {[%emt 0:01:06]} ({White should play} 13. Be3 $11) 13... Nxf4 {[%emt 0:00:36]} 14. Nxf4 {[%emt 0:02:00]} Bd7 {[%emt 0:01:53]} 15. Nce2 {[%emt 0:13:42]} Bc6 {[%emt 0:02:40]} 16. Qd3 {[%emt 0:15:24]} (16. Qe3 $15) 16... O-O {[%emt 0:14:52]} (16... g5 $17 17. Nh3 e5) 17. c4 {[%emt 0:04:58]} b6 {[%emt 0:01:33]} 18. Nd4 {[%emt 0:06:11]} Bd7 {[%emt 0:01:58]} 19. Nfe2 {[%emt 0:00:43]} Rad8 {[%emt 0:03:21]} 20. f4 {[%emt 0:04:18]} (20. Rfd1 $11) 20... Bc8 {[%emt 0:07:04]} (20... b5 $15) 21. Rac1 {[%emt 0:01:02]} Bb7 {[%emt 0:05:47]} 22. f5 {[%emt 0:02:37]} exf5 {[%emt 0:04:42]} (22... e5 $15 23. Nc2 {[#]} b5 $1 {[%mdl 512]}) 23. Nxf5 {[%emt 0:00:59]} Rfe8 {[%emt 0:00:44]} 24. Nc3 {[%emt 0:02:09]} Ng4 {[%emt 0:04:15]} 25. Nd5 {[%emt 0:01:12]} Bxd5 {[%emt 0:00:07]} 26. cxd5 {[%emt 0:01:25]} Qa7 {[%emt 0:00:28]} 27. Qc3 b5+ {[%emt 0:00:54]} 28. Qd4 {[%emt 0:02:55]} Qxd4+ {[%emt 0:00:16]} 29. Nxd4 {[%emt 0:00:01]} Bg5 {[%emt 0:00:35]} 30. Nc6 {[%emt 0:01:08]} Bxc1 {[%emt 0:00:35]} 31. Rxc1 {[%emt 0:00:34]} Rd7 {[%emt 0:00:42]} 32. h3 Nf6 33. Nb4 {[%emt 0:02:25]} Nxe4 {[%emt 0:03:19]} 34. Re1 {[%emt 0:00:04]} Nf6 {[%emt 0:00:05]} 35. Rxe8+ {[%emt 0:00:10]} Nxe8 {[%emt 0:00:02]} 36. Nxa6 {[%emt 0:00:10]} Ra7 {[%emt 0:00:56]} 37. Nb4 {[%emt 0:00:06]} Nc7 {[%emt 0:00:10]} 38. Kf2 {[%emt 0:01:47]} Na6 {[%emt 0:00:20]} 39. Nc6 {[%emt 0:00:14]} Ra8 {[%emt 0:00:17]} 40. b4 {[%emt 0:00:56]} Nc7 {[%emt 0:00:29]} 41. Bf3 $19 {[%emt 0:02:05]} 0-1

[Event "FRA-ch Youth 2017"]
[Site "Belfort"]
[Date "2017.04.23"]
[Round "9"]
[White "Gospodaru, Teodora"]
[Black "Rubsamen, Anais"]
[Result "1-0"]
[ECO "A80"]
[WhiteElo "1827"]
[BlackElo "1610"]
[Annotator "NA RC"]
[PlyCount "67"]
[EventDate "2017.??.??"]
[EventCountry "FRA"]
[SourceTitle "playchess.com"]
[Source "ChessBase"]
[SourceQuality "1"]
[TimeControl "5400+30"]

{[%evp 8,66,20,10,20,10,54,-2,88,95,89,47,66,29,38,31,62,30,54,44,67,35,66,32767,32767,32767,32767,89,32767,32767,108,104,181,113,161,32767,191,149,146,32767,32767,32767,157,114,244,218,256,32767,32767,32767,905,32767,32767,1334,1318,32767,1612,32767,29982,32767,29981]} 1. d4 {[%emt 0:00:00]} f5 {[%emt 0:00:06]} 2. Nf3 {[%emt 0:00:00]} Nf6 {[%emt 0:00:22]} 3. c4 {[%emt 0:00:07]} e6 {[%emt 0:00:08]} 4. e3 {[%emt 0:01:03]} Be7 {[%emt 0:00:24]} 5. Nbd2 {[%emt 0:00:23] A84: Dutch Defence: 2 c4 Miscellaneous} (5. Bd3 O-O 6. O-O b6 7. Nbd2 Bb7 8. Qc2 c5 9. a3 g6 10. e4 cxd4 11. exf5 gxf5 12. Nxd4 Nc6 13. N2f3 Nxd4 14. Nxd4 Bc5 15. Nb3 Bd6 {0-1 (37) Brunello,S (2544)-Rombaldoni,A (2471) Siena 2010}) 5... O-O {[%emt 0:00:17]} 6. Bd3 {[%emt 0:00:49]} d6 {[%emt 0:00:39]} 7. O-O {[%emt 0:03:37]} Qe8 {[%emt 0:00:18]} (7... c5 $11 {remains equal.}) 8. e4 {[%emt 0:04:45]} Nc6 $146 {[%emt 0:07:48]} (8... fxe4 9. Nxe4 Nxe4 10. Bxe4 c6 11. Qc2 Qh5 12. Ne1 d5 {1-0 (56) Solinas,R (1740)-Malago,F (1960) Mirandola 2011}) 9. a3 {[%emt 0:03:52]} Qh5 {[%emt 0:08:27]} 10. d5 {[%emt 0:06:35]} fxe4 {[%emt 0:08:22]} 11. Nxe4 {[%emt 0:02:09]} Nxe4 {[%emt 0:09:29]} 12. Bxe4 {[%emt 0:00:05]} Nd8 {[%emt 0:00:05]} 13. Be3 {[%emt 0:15:01]} e5 {[%emt 0:04:39]} 14. b4 {[%emt 0:03:27]} Qg4 {[%emt 0:05:44]} 15. Nd2 {[%emt 0:05:59]} Qh4 {[%emt 0:10:52]} 16. Qc2 {[%emt 0:07:08]} Qh5 {[%emt 0:01:40]} 17. c5 {[%emt 0:04:34]} Bf5 {[%emt 0:05:19]} 18. Bxf5 {[%emt 0:01:26]} Rxf5 {[%emt 0:04:20]} 19. Ne4 {[%emt 0:01:38]} Qf7 {[%emt 0:05:47]} (19... Rf8 $16) 20. Rfd1 {[%emt 0:10:41]} Qf8 {[%emt 0:05:19]} 21. Rac1 {[%emt 0:02:13]} Nf7 {[%emt 0:07:48]} 22. cxd6 Nxd6 {[%emt 0:00:27]} 23. Ng3 {[%emt 0:03:13]} Rf7 {[%emt 0:00:06]} 24. Qxc7 {[%emt 0:04:18]} Bg5 {[%emt 0:01:15]} 25. Qc3 {[%emt 0:01:05]} ({Much worse is} 25. Bxg5 $6 Rxc7 26. Rxc7 Qe8 $11) 25... Rc8 {[%emt 0:01:37]} (25... Bf4 $16 {is a better defense.} 26. f3 Rc7) 26. Qxe5 {[%emt 0:02:29]} Bf6 {[%emt 0:02:45]} 27. Rxc8 {[%emt 0:02:49]} Nxc8 {[%emt 0:01:08]} 28. Qe6 {[%emt 0:01:24]} Bb2 {[%emt 0:01:49]} 29. Bc5 {[%emt 0:01:13]} Ne7 {[%emt 0:01:29]} 30. Nf5 Bf6 {[%emt 0:00:40]} 31. Re1 {[%emt 0:01:27]} Kh8 {[%emt 0:01:35]} 32. Nxe7 {[%emt 0:01:45]} Bxe7 {[%emt 0:01:48]} 33. Bxe7 {[%emt 0:00:10]} Qg8 {[%emt 0:00:37]} 34. d6 {[%emt 0:00:43]} 1-0